{"text_format":"1","workbook":"xlsx","n_sheets":3,"sheets":["Feuil1","Feuil2","Feuil3"],"not_rendered":{"charts":0,"images":0,"macros":0,"external_links":0,"defined_names":2,"comments":0,"pivot_tables":0},"unopened":[],"bounds":{"document_bytes":16777216,"sheet_cells":100000,"rows_first":2000,"rows_last":500,"rows_between":2000,"halvings":0,"cell_chars":16384,"cell_head_chars":4096},"cells_cut":0,"cells_raw":0,"read":"whole","date_system":"1900"}

{"sheet":"Feuil1","index":0,"n_rows":14,"n_cols":34,"rows_kept":14,"cut":false,"hidden":false,"merged":[[4,25,11,25],[13,10,13,25],[4,24,11,24],[4,16,11,16],[1,10,1,25],[0,0,0,1],[4,1,4,5],[4,23,11,23],[4,11,11,11],[4,10,11,10],[4,18,11,18],[4,19,11,19],[4,20,11,20],[4,21,11,21],[4,22,11,22],[4,13,11,13],[4,14,11,14],[4,15,11,15],[4,17,11,17],[4,12,11,12]]}
["اختيار ترتيب الإطار",null,"الترتيب1",null,null,null,null,null,null,null,0,{"$f":"SUM($A$8:A$8)","v":2},{"$f":"SUM($A$8:B$8)","v":3},{"$f":"SUM($A$8:C$8)","v":4},{"$f":"SUM($A$8:D$8)","v":7},{"$f":"SUM($A$8:E$8)","v":9},{"$f":"SUM($A$8:F$8)","v":10},{"$f":"SUM($A$8:G$8)","v":11},{"$f":"SUM($A$8:H$8)","v":13}]
[null,null,null,null,"تختار من هنا الترتيب الذي تريد من القائمة",null,null,null,null,null,"الشكل رقم 1"]
[null,null,null,null,"قوائم الترتيب تجدها في النطاقات AG5:AR13",null,null,null,null,null,{"$f":"IFERROR(INDEX($A$7:$H$7,MATCH(K4-1,$K$1:$S$1,1)),\"\")","v":"عسل يمين"},{"$f":"IFERROR(INDEX($A$7:$H$7,MATCH(L4-1,$K$1:$S$1,1)),\"\")","v":"عسل يمين"},"حبوب اللقاح","مضاف اساس","حضنة مفتوحة","حضنة مفتوحة","حضنة مفتوحة","حضنة مغلقة","حضنة مغلقة","مضاف اساس","حبوب اللقاح","عسل يسار","عسل يسار","","",""]
[null,null,null,null,null,null,null,null,null,null,1,2,3,4,5,6,7,8,9,10,11,12,13,14,15,16,null,null,"حضنة مفتوحة"]
[null,"متال رقم 1",null,null,null,null,null,null,null,null,{"$f":"K3","v":"عسل يمين"},{"$f":"L3","v":"عسل يمين"},"حبوب اللقاح","مضاف اساس","حضنة مفتوحة","حضنة مفتوحة","حضنة مفتوحة","حضنة مغلقة","حضنة مغلقة","مضاف اساس","حبوب اللقاح","عسل يسار","عسل يسار","","",{"$f":"Z3","v":""},null,null,"حضنة مغلقة",null,null,null,"الترتيب1","الترتيب2"]
["اطار","اطار","اطار","اطار","اطار","اطار","اطار","اطار",null,null,null,null,null,null,null,null,null,null,null,null,null,null,null,null,null,null,null,null,"عسل مختوم",null,null,null,"عسل يمين","عسل يمين"]
[{"$f":"INDEX(إطار,1)","v":"عسل يمين"},{"$f":"INDEX(إطار,2)","v":"حبوب اللقاح"},{"$f":"INDEX(إطار,3)","v":"مضاف اساس"},{"$f":"INDEX(إطار,4)","v":"حضنة مفتوحة"},{"$f":"INDEX(إطار,5)","v":"حضنة مغلقة"},{"$f":"INDEX(إطار,6)","v":"مضاف اساس"},{"$f":"INDEX(إطار,7)","v":"حبوب اللقاح"},{"$f":"INDEX(إطار,8)","v":"عسل يسار"},null,null,null,null,null,null,null,null,null,null,null,null,null,null,null,null,null,null,null,null,"حبوب اللقاح",null,null,null,"حبوب اللقاح","حبوب اللقاح"]
[2,1,1,3,2,1,1,2,null,null,null,null,null,null,null,null,null,null,null,null,null,null,null,null,null,null,null,null,"مضاف",null,null,null,"مضاف اساس","حضنة مغلقة"]
[null,null,null,null,null,null,null,null,null,null,null,null,null,null,null,null,null,null,null,null,null,null,null,null,null,null,null,null,null,null,null,null,"حضنة مفتوحة","مضاف اساس"]
[null,null,null,null,null,null,null,null,null,null,null,null,null,null,null,null,null,null,null,null,null,null,null,null,null,null,null,null,null,null,null,null,"حضنة مغلقة","حضنة مفتوحة"]
[null,null,null,null,null,null,null,null,null,null,null,null,null,null,null,null,null,null,null,null,null,null,null,null,null,null,null,null,null,null,null,null,"مضاف اساس","مضاف اساس"]
[null,null,null,null,null,null,null,null,null,null,null,null,null,null,null,null,null,null,null,null,null,null,null,null,null,null,null,null,"مضاف اساس",null,null,null,"حبوب اللقاح","حبوب اللقاح يسار"]
[null,null,null,null,null,null,null,null,null,null,null,null,null,null,null,null,null,null,null,null,null,null,null,null,null,null,null,null,null,null,null,null,"عسل يسار","عسل يسار"]
[null,null,null,null,null,null,null,null,null,null,"الاطارات"]

{"sheet":"Feuil2","index":1,"n_rows":0,"n_cols":0,"rows_kept":0,"cut":false,"hidden":false,"merged":[]}

{"sheet":"Feuil3","index":2,"n_rows":0,"n_cols":0,"rows_kept":0,"cut":false,"hidden":false,"merged":[]}